bitfinex/quotes_ETHUSD_20241203
["timestamp","ask_amount","ask_price","bid_price","bid_amount"]
[1733215988256,3.79312923,3609.9,3609.3,2.7706]
[1733215988462,3.02302923,3609.5,3609.0,2.77083]
[1733215988608,3.02302923,3609.1,3608.7,2.77102]
[1733215989007,3.82992923,3609.1,3608.4,0.35335]
[1733215989314,3.82992923,3609.1,3608.3,2.77136]
[1733215989509,3.82992923,3609.1,3608.1,0.7968]
[1733215989710,3.82992923,3609.1,3608.5,2.77122]
[1733215990650,3.82992923,3609.1,3608.3,0.55]
[1733215990807,3.82992923,3609.1,3608.5,2.77123]
[1733215991014,3.82992923,3609.1,3608.6,0.55]
[1733215991863,3.82992923,3609.1,3608.5,2.77123]
[1733215992006,3.82992923,3609.1,3608.6,0.55]
[1733215992206,3.02302923,3609.1,3608.6,0.55]
[1733215992650,3.02302923,3609.1,3608.8,0.55]
[1733215992853,3.02302923,3609.1,3609.0,0.55]
[1733215993073,3.02302923,3609.1,3607.1,0.1]
[1733215993074,3.02302923,3609.1,3608.5,0.55]
[1733215993372,3.02302923,3609.1,3608.5,2.77119]
[1733215993673,3.02302923,3609.1,3608.6,0.06304706]
[1733215994465,0.7804,3609.5,3608.6,0.06304706]
[1733215994623,0.7804,3609.5,3608.7,0.55]
[1733215994827,0.7804,3609.5,3608.7,3.32107]
[1733215995139,0.7804,3609.5,3608.9,0.55]
[1733215995562,0.7804,3609.5,3609.0,0.06279509]
[1733215995775,0.7804,3609.5,3609.2,2.77066]
[1733215995980,0.8045,3609.9,3609.3,0.55]
[1733215996125,0.8045,3609.9,3609.3,3.38342091]
[1733215996537,0.8045,3609.9,3609.3,0.61281091]
[1733215996739,0.802,3609.8,3609.3,0.06281091]
[1733215997174,0.802,3609.8,3609.0,0.55]
[1733215997673,0.802,3609.8,3609.1,0.06301407]
[1733215997842,0.802,3609.8,3608.8,0.55]
[1733215998022,0.802,3609.8,3609.2,0.06295109]
[1733215998380,3.82788401,3609.8,3608.8,0.55]
[1733215998528,3.82788401,3609.8,3609.3,0.06288811]
[1733215998529,0.25564401,3609.7,3609.3,0.06288811]
[1733215998722,0.802,3609.8,3608.8,3.32099]
[1733215998939,1.05764401,3609.8,3609.4,0.06282513]
[1733215999138,1.05764401,3609.8,3609.5,0.55]
[1733215999139,0.802,3609.8,3609.5,0.55]
[1733215999456,0.802,3609.8,3609.5,0.61276216]
[1733215999866,0.802,3609.8,3609.3,0.55]
[1733216000354,0.802,3609.8,3609.5,0.55]
[1733216000790,0.802,3609.8,3609.3,0.55]
[1733216000997,0.802,3609.8,3609.0,0.55]
[1733216001312,0.802,3609.8,3608.8,2.77093]
[1733216001509,0.802,3609.8,3608.4,0.8187]
[1733216001510,0.802,3609.8,3609.1,0.06301407]
[1733216001802,0.802,3609.8,3608.9,2.77085]
[1733216002103,0.802,3609.8,3609.0,0.06307705]
[1733216002665,2.77032,3609.7,3609.0,0.06307705]
[1733216003709,0.802,3609.8,3609.0,0.06307705]
[1733216003866,1.05781518,3609.8,3609.0,0.06307705]
[1733216004063,0.802,3609.8,3609.0,0.06307705]
[1733216006070,1.05779664,3609.8,3609.0,0.06307705]
[1733216006315,0.7661,3609.2,3609.0,0.06307705]
[1733216006609,0.7661,3609.2,3608.6,2.77115]
[1733216006825,0.54826276,3610.1,3608.8,2.77098]
[1733216006826,2.77014,3610.0,3608.8,2.77098]
[1733216006977,0.25578984,3609.9,3608.9,2.77092]
[1733216007310,0.25578984,3609.9,3608.9,2.83399289]
[1733216007806,0.25578984,3609.9,3609.0,0.55]
[1733216008211,0.25578984,3609.9,3609.1,0.06299392]
[1733216008367,3.27881907,3609.9,3609.1,0.06299392]
[1733216008566,3.02302923,3609.9,3609.1,0.06299392]
[1733216008809,0.7679,3610.1,3608.9,0.55]
[1733216009114,3.02302923,3609.7,3608.9,0.55]
[1733216009407,3.56071,3609.6,3608.5,2.77123]
[1733216009611,3.56071,3609.6,3609.0,0.06299983]
[1733216009765,3.56071,3609.6,3608.6,0.55]
[1733216009967,0.7903,3609.2,3609.1,0.06293685]
[1733216010193,0.7903,3609.2,3608.4,0.55]
[1733216010406,0.7903,3609.2,3608.6,0.55]
[1733216010784,0.7903,3609.2,3608.7,0.06318881]
[1733216011391,0.7903,3609.2,3608.7,2.83421881]
[1733216011795,0.7903,3609.2,3608.8,3.321]
[1733216011997,0.7926,3609.8,3608.9,2.77089]
[1733216012308,0.7926,3609.8,3609.0,0.55]
[1733216012519,1.04823886,3609.8,3609.0,0.55]
[1733216012808,1.04823886,3609.8,3609.1,0.0629872]
[1733216012993,0.54995949,3609.9,3609.1,0.0629872]
[1733216012994,0.8121,3609.4,3609.1,0.0629872]
[1733216013373,0.8121,3609.4,3608.6,0.55]
[1733216013573,0.8121,3609.4,3609.2,0.06292422]
[1733216013869,3.5827,3609.4,3608.4,0.55]
[1733216014372,3.5827,3609.4,3608.6,0.55]
[1733216014800,0.8121,3609.4,3608.7,0.06323916]
[1733216014965,2.77066,3609.3,3608.7,0.06323916]
[1733216015367,2.77066,3609.3,3608.3,0.55]
[1733216015564,2.77066,3609.3,3608.8,0.06317617]
[1733216015779,2.77066,3609.3,3608.3,0.55]
[1733216016020,2.77066,3609.3,3608.9,0.06311318]
[1733216016216,2.77066,3609.3,3608.3,0.55]
[1733216016513,0.8121,3609.4,3608.4,0.06342817]
[1733216016514,2.77069,3609.2,3608.4,0.06342817]
[1733216016934,3.58266,3609.4,3608.4,0.06342817]
[1733216017076,0.25579757,3609.3,3608.4,0.06342817]
[1733216017621,1.06789757,3609.4,3608.4,0.06342817]
[1733216017787,1.06789757,3609.4,3608.6,0.7507]
[1733216017987,0.8121,3609.4,3608.8,2.77099]
[1733216018315,0.8121,3609.4,3608.9,0.06333475]
[1733216018475,1.06789757,3609.4,3608.9,0.06333475]
[1733216018674,1.06789757,3609.4,3608.4,2.77129]
[1733216018874,3.83843757,3609.4,3608.2,3.32143]
[1733216019075,0.25579757,3609.3,3608.5,0.06358674]
[1733216019317,3.02641757,3609.3,3608.4,0.55]
[1733216019577,0.25579757,3609.2,3608.6,0.06352373]
[1733216019855,3.02302923,3609.1,3608.5,0.06358674]
[1733216020160,3.02302923,3609.1,3608.7,0.06346074]
[1733216020313,3.02302923,3609.1,3608.2,2.77144]
[1733216020314,2.771,3608.8,3608.6,0.06352373]
[1733216020509,3.02302923,3608.7,3607.8,2.77174]
[1733216020715,0.8225,3608.6,3607.7,0.54521254]
[1733216020965,0.8225,3608.6,3607.7,3.31702254]
[1733216021461,0.8225,3608.6,3607.8,2.77169]
[1733216021770,1.35671239,3608.9,3608.3,2.77136]
[1733216022048,1.35671239,3608.9,3608.3,2.77134]
[1733216022257,1.35671239,3608.9,3607.9,2.77169]
[1733216022258,0.8121,3608.9,3608.4,2.7713]
[1733216022613,0.8121,3608.9,3608.2,0.55]
[1733216022816,0.8121,3608.9,3608.6,2.77113]
[1733216023230,3.02302923,3609.1,3608.2,3.32146]
[1733216023231,3.02302923,3609.5,3608.4,0.55]
[1733216023437,0.25542594,3609.4,3608.7,2.77107]
[1733216023634,0.25542594,3609.4,3608.6,0.55]
[1733216023826,0.25542594,3609.4,3608.8,2.77095]
[1733216024034,0.25542594,3609.4,3608.6,0.55]
[1733216024035,0.25542594,3609.4,3608.9,2.77087]
[1733216024366,0.25542594,3609.4,3608.6,0.55]
[1733216024367,0.8112,3609.6,3609.0,2.77084]
[1733216024883,1.06471235,3609.8,3609.1,0.55]
[1733216025075,0.8093,3609.8,3609.1,0.55]
[1733216025277,0.8093,3609.8,3608.9,0.55]
[1733216025423,0.8093,3609.8,3609.2,2.77062]
[1733216025619,0.8093,3609.8,3609.3,2.7706]
[1733216025924,0.25544879,3610.2,3609.4,0.55]
[1733216026130,0.7795,3610.6,3610.0,2.77008]
[1733216026556,1.03493777,3610.6,3610.1,0.55]
[1733216026740,1.03493777,3610.6,3610.1,2.76999]
[1733216026741,0.7795,3610.6,3610.1,2.76999]
[1733216027823,0.8043,3611.0,3610.5,0.55]
[1733216028269,0.8043,3611.0,3610.2,0.55]
[1733216028758,3.02302923,3610.8,3610.2,0.55]
[1733216029481,3.02302923,3610.8,3610.2,3.31989]
[1733216029670,0.8043,3611.0,3610.4,0.55]
[1733216032027,0.8043,3611.0,3610.5,0.06144461]
[1733216033371,0.8043,3611.0,3610.7,2.76953]
[1733216033727,0.8043,3611.0,3610.8,0.06121556]
[1733216033922,0.8043,3611.0,3610.6,1.09899589]
[1733216034223,0.8043,3611.0,3610.9,0.06114929]
[1733216034428,0.8043,3611.0,3610.0,3.54137]
[1733216034653,3.02302923,3610.7,3610.1,0.55]
[1733216034975,3.02302923,3610.7,3610.1,0.61162928]
[1733216036031,3.02302923,3610.3,3610.1,0.06162928]
[1733216036460,3.02302923,3610.3,3609.7,2.77027]
[1733216036660,3.02302923,3610.3,3610.2,0.06165691]
[1733216037126,3.02302923,3610.3,3609.7,2.77027]
[1733216037376,3.02302923,3610.3,3610.2,0.06165691]
[1733216037556,3.02302923,3610.3,3609.8,0.55]
[1733216037875,3.02302923,3610.3,3610.2,0.06165691]
[1733216038053,3.02302923,3610.3,3609.9,0.06184576]
[1733216038365,0.8297,3610.6,3609.9,0.06184576]
[1733216038767,0.7797,3610.6,3609.9,0.06184576]
[1733216041637,0.7797,3610.6,3609.9,2.83199576]
[1733216042893,0.7797,3610.6,3609.9,0.06184576]
[1733216043851,0.71927129,3610.6,3609.9,3.62164852]
[1733216045049,0.56654772,3610.7,3609.9,3.39179852]
[1733216046852,0.7522,3610.6,3609.9,0.62164852]
[1733216047880,0.7522,3610.6,3610.3,3.02302923]
[1733216048078,0.7522,3610.6,3610.4,0.06160485]
[1733216048285,3.52182,3610.6,3610.4,0.06160485]
[1733216048463,3.47182,3610.6,3609.9,3.02302923]
[1733216048865,3.47182,3610.6,3610.0,0.06187676]
[1733216049671,0.56654772,3610.7,3610.0,0.06187676]
[1733216049672,3.33613772,3610.7,3610.0,0.06187676]
[1733216049970,0.25470026,3610.6,3609.5,3.02302923]
[1733216050135,2.76962,3610.6,3610.1,0.06181381]
[1733216050343,0.56654772,3610.7,3609.6,0.30230292]
[1733216050344,0.56654772,3610.7,3610.3,3.02302923]
[1733216050726,0.56654772,3610.7,3610.4,0.06172566]
[1733216051268,0.25472347,3610.9,3610.4,0.06172566]
[1733216051460,1.0215005,3610.9,3610.4,0.06172566]
[1733216051830,1.0215005,3610.9,3610.3,3.02302923]
[1733216052027,1.0215005,3610.9,3610.7,3.02302923]
[1733216052273,0.56534985,3611.1,3610.7,3.02302923]
[1733216052586,0.2549005,3611.3,3610.8,0.06147393]
[1733216052728,0.7954,3611.5,3611.2,3.02302923]
[1733216052928,4.12724638,3611.5,3611.2,3.02302923]
[1733216053163,4.12724638,3611.5,3611.3,0.06115936]
[1733216053164,0.2549005,3611.4,3611.3,0.06115936]
[1733216053348,3.0239005,3611.4,3611.3,0.06115936]
[1733216053555,3.0239005,3611.4,3610.8,3.02302923]
[1733216053742,1.35831638,3611.5,3611.3,0.01967225]
[1733216053928,1.35831638,3611.5,3610.8,3.02302923]
[1733216054132,1.35831638,3611.5,3611.4,0.05577217]
[1733216054329,1.35831638,3611.5,3610.8,3.02302923]
[1733216054529,1.35831638,3611.5,3611.4,0.05577217]
[1733216054776,0.7954,3611.5,3610.9,0.55]
[1733216054975,1.04327979,3611.9,3611.4,0.05577217]
[1733216055175,0.25527979,3611.8,3611.0,0.8264]
[1733216055329,0.25527979,3611.7,3611.5,0.05534018]
[1733216055530,0.25527979,3611.8,3611.0,0.8264]
[1733216055757,0.25527979,3611.8,3611.6,0.05522697]
[1733216055954,0.25527979,3611.8,3611.0,0.8264]
[1733216056168,3.02397979,3611.8,3611.7,0.05516072]
[1733216056377,3.57288271,3611.8,3611.0,0.8264]
[1733216056671,0.25551668,3611.7,3611.0,0.8264]
[1733216057669,0.25551668,3611.7,3611.1,0.55]
[1733216057828,0.788,3611.9,3611.3,0.55]
[1733216058346,0.788,3611.9,3611.2,3.02302923]
[1733216058652,0.788,3611.9,3611.0,0.8264]
[1733216058653,4.11550861,3611.9,3611.0,0.8264]
[1733216058858,0.25551668,3611.8,3611.0,0.8264]
[1733216059053,1.34686861,3611.9,3611.0,0.8264]
[1733216059441,4.11551861,3611.9,3611.0,0.8264]
[1733216059673,0.25551668,3611.8,3611.0,0.8264]
[1733216060648,1.34686861,3611.9,3611.0,0.8264]
[1733216060867,0.25551668,3612.0,3611.3,0.55]
[1733216061037,1.03131668,3612.2,3611.3,0.55]
[1733216061254,1.03131668,3612.2,3611.4,0.05524543]
[1733216061470,1.03131668,3612.2,3611.4,2.82423543]
[1733216061634,0.7758,3612.2,3611.6,3.02302923]
[1733216061980,1.04411668,3612.5,3611.7,0.05502991]
[1733216062161,1.04411668,3612.5,3611.7,2.82379991]
[1733216062363,0.7886,3612.5,3611.8,2.76869]
[1733216062544,3.81198668,3612.9,3611.8,2.82342565]
[1733216062747,0.25551668,3612.8,3611.8,2.82342565]
[1733216063254,0.5632858,3612.5,3612.0,3.02302923]
[1733216063458,0.7886,3612.9,3612.0,3.02302923]
[1733216063668,0.7886,3612.9,3612.1,0.05442297]
[1733216063878,1.35160862,3612.9,3612.1,0.05442297]
[1733216064084,0.56300862,3612.9,3612.4,3.83992923]
[1733216064441,1.00778148,3613.3,3612.5,0.05417148]
[1733216065255,1.00778148,3613.3,3612.7,3.02302923]
[1733216065471,0.7527,3613.3,3612.7,3.02302923]
[1733216065681,0.7527,3613.3,3612.8,0.0539829]
[1733216066065,0.7527,3613.3,3612.4,3.83992923]
[1733216066266,0.7527,3613.3,3612.9,0.05392005]
[1733216066549,0.25508148,3613.7,3613.6,4.04439995]
[1733216066749,0.8008,3615.2,3614.2,2.76683]
[1733216066955,0.8008,3615.2,3614.3,0.42367445]
[1733216067196,0.8008,3615.2,3614.4,2.76669]
[1733216067399,0.8008,3615.2,3614.8,3.02302923]
[1733216067579,1.3411114,3615.5,3614.8,3.02302923]
[1733216067900,1.3411114,3615.5,3614.9,0.05106529]
[1733216068069,0.8025,3615.8,3614.9,0.05106529]
[1733216068419,1.35871432,3615.8,3614.9,0.05106529]
[1733216068604,0.8025,3615.8,3614.9,0.05106529]
[1733216068955,0.8025,3615.8,3614.9,2.81737529]
[1733216069258,0.8025,3615.8,3614.9,0.05106529]
[1733216069462,0.8025,3615.8,3614.9,0.59564333]
[1733216070571,0.8025,3615.8,3614.9,0.05106529]
[1733216071455,2.76533,3616.2,3614.9,3.55597625]
[1733216072714,2.76533,3616.2,3615.0,0.55]
[1733216072867,0.7685,3616.3,3615.2,6.57682432]
[1733216073259,0.4805406,3616.3,3615.3,0.05064351]
[1733216073458,0.5594452,3616.2,3615.3,0.05064351]
[1733216074592,0.5594452,3616.2,3615.4,0.55]
[1733216074791,0.5594452,3616.2,3615.5,0.7794]
[1733216075097,0.5594452,3616.2,3615.5,0.82982094]
[1733216076181,2.76541,3616.1,3615.5,0.05042094]
[1733216076412,2.76541,3616.1,3615.1,0.7632]
[1733216076600,2.7655,3616.0,3615.6,0.05026451]
[1733216076916,2.76564,3615.8,3615.1,0.7632]
[1733216077096,2.76564,3615.8,3615.7,0.05020175]
[1733216077295,2.76564,3615.8,3615.1,0.7632]
[1733216077680,2.76564,3615.8,3615.2,0.04944621]
[1733216078297,2.76548,3616.0,3615.2,0.04944621]
[1733216078972,2.76565,3615.8,3615.2,0.04944621]
[1733216080621,0.81,3618.1,3616.6,0.55]
[1733216080778,0.81,3618.1,3616.8,0.55]
[1733216080779,0.55248098,3617.7,3616.8,0.55]
[1733216080975,0.81,3618.1,3616.9,0.8809654]
[1733216081194,0.81,3618.1,3617.0,0.04837711]
[1733216081396,0.81,3618.1,3617.1,0.55]
[1733216081611,0.81,3618.1,3617.2,0.8696517]
[1733216081612,0.54024423,3618.0,3617.2,0.8696517]
[1733216082016,3.30421423,3618.0,3617.2,0.8696517]
[1733216082236,2.76405,3617.9,3617.2,0.0482517]
[1733216082581,2.76405,3617.9,3616.8,0.8214]
[1733216082782,2.76405,3617.9,3616.9,0.04770097]
[1733216083510,0.54024423,3618.0,3616.9,0.04770097]
[1733216083886,2.76426,3617.6,3616.9,0.04770097]
[1733216085425,0.8297,3617.4,3616.9,0.04770097]
[1733216085587,0.8297,3617.4,3616.2,0.789]
[1733216085921,2.76465,3617.1,3616.3,0.04823102]
[1733216086085,0.8297,3617.4,3616.3,0.04823102]
[1733216086276,2.76492,3616.8,3616.3,0.04823102]
[1733216086693,0.55672396,3617.1,3616.0,0.641]
[1733216086919,0.55672396,3617.1,3616.4,0.04817497]
[1733216087227,2.76499,3616.7,3616.5,0.04822923]
[1733216087399,2.76499,3616.7,3616.0,0.641]
[1733216087602,2.76499,3616.7,3616.1,0.04848016]
[1733216088825,0.55672396,3617.1,3616.1,0.04848016]
[1733216089028,0.7992,3616.6,3616.1,0.04848016]
[1733216089328,2.76533,3616.2,3616.1,0.04848016]
[1733216089628,2.76541,3616.1,3616.0,0.641]
[1733216089936,2.76526,3616.3,3616.0,0.641]
[1733216090290,0.56685225,3616.4,3616.0,0.641]
[1733216090635,2.76541,3616.1,3616.0,0.641]
[1733216090931,0.56685225,3616.4,3615.4,0.7868]
[1733216090932,2.76553,3616.0,3615.4,0.7868]
[1733216091145,3.33210225,3616.4,3615.0,0.7756]
[1733216091290,3.33210225,3616.4,3615.1,0.55]
[1733216091489,3.33210225,3616.4,3615.0,1.51087443]
[1733216091490,2.76533,3616.2,3615.0,1.51087443]
[1733216091808,2.76556,3615.9,3615.0,0.7756]
[1733216092010,2.76565,3615.8,3615.1,0.04889366]
[1733216094132,0.55993954,3615.9,3615.1,0.04889366]
[1733216094133,2.76579,3615.6,3615.1,0.04889366]
[1733216094506,2.76579,3615.6,3614.7,0.7651]
[1733216094952,2.76579,3615.6,3614.8,0.049082]
[1733216095775,0.55993954,3615.9,3614.8,0.049082]
[1733216095985,2.76565,3615.8,3614.8,0.049082]
[1733216096193,2.76565,3615.8,3614.8,0.4071622]
[1733216096339,2.76565,3615.8,3614.9,0.55]
[1733216096540,2.76565,3615.8,3615.0,0.04895644]
[1733216097889,0.55993954,3615.9,3615.0,0.04895644]
[1733216097890,2.76574,3615.7,3615.0,0.04895644]
[1733216098035,0.55993954,3615.9,3615.0,0.04895644]
[1733216098240,2.76586,3615.6,3615.0,0.04895644]
[1733216098492,0.55993954,3615.9,3615.0,0.04895644]
[1733216098646,2.76581,3615.6,3614.7,0.7651]
[1733216098966,6.06518,3616.4,3613.0,3.06773678]
[1733216098967,2.76441,3617.4,3616.3,0.8125]
[1733216099169,0.25521824,3617.3,3616.7,3.01049904]
[1733216099352,0.156481,3617.5,3616.8,0.047827]
[1733216100388,0.156481,3617.5,3616.4,0.55]
[1733216100592,0.5480476,3617.2,3616.7,0.55]
[1733216100738,0.5480476,3617.2,3616.8,0.04816477]
[1733216101578,0.5480476,3617.2,3617.0,0.55]
[1733216101796,0.5480476,3617.2,3617.1,0.04797664]
[1733216102339,0.5480476,3617.2,3616.5,0.8246]
[1733216102540,0.5480476,3617.2,3616.6,0.04829021]
[1733216106167,0.5480476,3617.2,3616.6,2.81331021]
[1733216106367,0.5480476,3617.2,3616.6,3.17710123]
[1733216106748,0.5480476,3617.2,3616.6,0.41208123]
[1733216107974,0.5480476,3617.2,3616.6,0.04829021]
[1733216108480,3.3126176,3617.2,3616.6,0.04829021]
[1733216108784,3.3126176,3617.2,3616.2,0.8006]
[1733216108985,3.3126176,3617.2,3616.3,0.04822436]
[1733216109156,0.5480476,3617.2,3616.3,0.04822436]
[1733216109357,0.5480476,3617.2,3616.3,2.81345436]
[1733216109669,0.5480476,3617.2,3616.4,3.31517]
[1733216109879,0.5480476,3617.2,3616.6,2.76502]
[1733216110079,0.5480476,3617.2,3616.7,3.31495]
[1733216110288,0.5480476,3617.2,3616.9,0.55]
[1733216110801,0.5480476,3617.2,3617.0,0.04778531]
[1733216111150,0.5480476,3617.2,3617.1,0.55]
[1733216111355,0.5480476,3617.2,3617.1,0.59772261]
[1733216111787,0.5480476,3617.2,3617.1,3.36236261]
[1733216112100,0.5480476,3617.2,3617.1,0.59772261]
[1733216113281,0.5480476,3617.2,3617.1,3.36236261]
[1733216113466,0.5480476,3617.2,3617.1,3.77776332]
[1733216114785,0.156481,3617.5,3617.3,0.55]
[1733216115099,0.156481,3617.5,3617.4,0.04690261]
[1733216119449,0.156481,3617.5,3617.4,1.39080261]
[1733216119941,0.6998991,3617.5,3617.4,0.04690261]
[1733216120353,0.6998991,3617.5,3617.2,0.55]
[1733216120500,0.156481,3617.5,3617.4,0.04690261]
[1733216120697,0.156481,3617.5,3617.3,0.0469653]
[1733216120924,0.156481,3617.5,3617.4,0.04690261]
[1733216121253,0.156481,3617.5,3617.1,0.55]
[1733216121450,0.156481,3617.5,3616.3,6.93321359]
[1733216121451,0.156481,3617.5,3617.2,0.047028]
[1733216121610,0.156481,3617.5,3616.7,0.7771]
[1733216121812,0.156481,3617.5,3616.8,0.40148684]
[1733216122197,0.156481,3617.5,3616.7,3.54197]
[1733216122397,0.156481,3617.5,3616.8,0.04720867]
[1733216122850,0.156481,3617.5,3616.9,0.55]
[1733216123005,0.156481,3617.5,3617.0,0.04708325]
[1733216126546,0.156481,3617.5,3617.0,2.81179325]
[1733216126743,0.156481,3617.5,3617.2,0.55]
[1733216127076,0.156481,3617.5,3617.4,0.55]
[1733216127579,0.156481,3617.5,3617.4,0.59683244]
[1733216128072,0.156481,3617.5,3617.4,3.36124244]
[1733216128281,0.156481,3617.5,3617.4,3.38888384]
[1733216128577,0.156481,3617.5,3617.4,3.80824222]
[1733216128729,0.156481,3617.5,3617.4,3.78060082]
[1733216130138,0.156481,3617.5,3617.4,4.53880082]
[1733216130786,0.156481,3617.5,3617.4,4.5664362]
[1733216130932,1e-06,3617.5,3617.4,7.5664362]
[1733216131286,1e-06,3617.5,3617.4,7.53880082]
[1733216131428,1e-06,3617.5,3617.4,7.99774512]
[1733216131948,1e-06,3617.5,3617.4,8.27484512]
[1733216132132,1e-06,3617.5,3617.4,7.99774512]
[1733216132973,1.01590101,3619.5,3618.8,3.58854]
[1733216132974,0.7603,3619.5,3618.8,3.58854]
[1733216133269,0.7658,3619.8,3618.9,3.35821381]
[1733216133473,0.7658,3619.8,3618.9,0.59495381]
[1733216133670,1.02140101,3619.8,3618.9,0.59495381]
[1733216134029,1.58224173,3619.8,3618.9,0.59495381]
[1733216134268,2.76267,3619.7,3618.9,0.59495381]
[1733216134436,0.25560101,3619.6,3618.9,0.59495381]
[1733216134636,0.25560101,3619.6,3618.9,0.55]
[1733216134843,1.02140101,3619.8,3618.9,0.55]
[1733216135126,0.7658,3619.8,3619.1,0.55]
[1733216135555,0.7658,3619.8,3619.2,0.04470246]
[1733216135870,0.7658,3619.8,3619.3,0.55]
[1733216136077,3.52838,3619.8,3619.3,0.55]
[1733216136223,0.25583933,3619.7,3619.3,0.55]
[1733216136429,0.25583933,3619.7,3619.4,0.04457721]
[1733216136674,0.25583933,3619.7,3619.3,0.55]
[1733216136969,3.52838,3619.8,3619.3,0.55]
[1733216137271,3.52838,3619.8,3619.4,0.04457721]
[1733216137664,3.52838,3619.8,3619.3,0.55]
[1733216137827,3.52838,3619.8,3619.4,0.04457721]
[1733216138023,0.7658,3619.8,3619.3,0.55]
[1733216138227,0.7658,3619.8,3619.4,0.04457721]
[1733216138459,1.02134834,3619.8,3619.3,0.55]
[1733216138639,2.76267,3619.7,3619.4,0.04457721]
[1733216138973,2.76267,3619.7,3618.9,0.55]
[1733216139146,2.76267,3619.7,3619.5,0.04451458]
[1733216139468,0.7658,3619.8,3619.6,0.04445196]
[1733216139671,0.7658,3619.8,3618.9,0.55]
[1733216139828,0.7658,3619.8,3618.9,1.263869]
[1733216140027,0.7658,3619.8,3619.1,0.55]
[1733216140270,0.7658,3619.8,3619.2,0.04470246]
[1733216141685,1.02130431,3619.8,3619.2,0.04470246]
[1733216141827,0.7658,3619.8,3619.2,0.04470246]
[1733216142183,1.02127487,3619.8,3619.2,0.04470246]
[1733216142346,0.7658,3619.8,3619.2,0.04470246]
[1733216142835,3.52839,3619.8,3619.2,0.04470246]
[1733216143029,3.52839,3619.8,3618.9,0.55]
[1733216143344,3.52839,3619.8,3619.0,0.04463413]
[1733216143552,0.25548237,3619.7,3619.0,0.04463413]
[1733216143758,3.52839,3619.8,3619.0,0.04463413]
[1733216144914,3.52839,3619.8,3619.4,3.80323794]
[1733216145073,3.52839,3619.8,3619.5,3.0]
[1733216145277,2.76205,3620.5,3619.6,0.04425836]
[1733216145436,1.05791895,3620.4,3620.0,3.0]
[1733216145630,1.34902667,3620.4,3620.1,0.04394531]
[1733216146527,3.58471,3621.0,3620.4,3.0]
[1733216146747,3.01712695,3620.9,3620.4,3.0]
[1733216146963,2.76197,3620.6,3620.5,0.04369494]
[1733216147127,2.76197,3620.6,3619.5,3.0]
[1733216147128,0.823,3620.5,3619.5,3.0]
[1733216147460,0.7961,3620.4,3619.6,0.04280186]
[1733216147833,0.7961,3620.4,3619.9,3.0]
[1733216148027,0.7961,3620.4,3620.0,0.04255142]
[1733216153710,1.05154366,3620.4,3620.0,3.04255142]
[1733216153926,0.7961,3620.4,3620.0,3.04255142]
[1733216154068,2.76227,3620.3,3620.0,3.04255142]
[1733216154627,0.25543582,3620.2,3620.0,3.04255142]
[1733216154956,1.05153582,3620.4,3620.0,3.04255142]
[1733216155110,0.7961,3620.4,3620.3,3.00246997]
[1733216155313,0.7961,3620.4,3620.3,6.00246997]
[1733216155516,0.7961,3620.4,3620.3,6.04411274]
[1733216156870,0.7961,3620.4,3620.3,0.04164277]
[1733216157170,0.7912,3620.2,3618.4,0.765]
[1733216157367,2.76312,3619.1,3618.5,3.00246997]
[1733216157606,0.7912,3619.0,3618.5,3.00246997]
[1733216158104,2.76341,3618.8,3618.5,3.00246997]
[1733216158268,0.7912,3619.0,3618.5,3.00246997]
[1733216158469,0.54679808,3618.8,3618.5,3.00246997]
[1733216158682,0.54679808,3618.8,3618.6,3.0]
[1733216160089,0.54679808,3618.8,3617.9,3.0]
[1733216160284,0.54679808,3618.8,3617.9,3.35911952]
[1733216160485,0.54679808,3618.8,3618.0,0.55]
[1733216160688,0.54679808,3618.8,3618.2,0.55]
[1733216162228,0.54679808,3618.8,3618.0,3.55]
[1733216162733,0.54679808,3618.8,3618.2,3.55]
[1733216163502,0.54679808,3618.8,3618.2,3.31379]
[1733216163822,0.54679808,3618.8,3618.3,3.0]
[1733216165300,0.54679808,3618.8,3618.3,6.00246997]
[1733216165720,0.54679808,3618.8,3618.3,6.93409597]
[1733216165920,0.54679808,3618.8,3618.4,0.55]
[1733216166789,0.54679808,3618.8,3618.5,0.04134683]
[1733216166984,0.7912,3619.0,3618.5,0.04134683]
[1733216167231,1.07542465,3619.4,3618.7,3.00246997]
[1733216167394,3.30246997,3620.9,3618.7,3.00246997]
[1733216167395,0.8194,3619.7,3618.8,4.03606736]
[1733216167591,0.8194,3619.7,3618.8,6.35497225]
[1733216167925,0.8194,3619.7,3618.8,3.59163225]
[1733216168487,0.55319501,3619.4,3618.8,3.59163225]
[1733216168685,0.55319501,3619.4,3618.8,0.59163225]
[1733216169987,0.25603533,3619.7,3619.1,3.00246997]
[1733216170191,0.8112,3620.3,3619.5,3.00246997]
[1733216170441,0.8112,3620.3,3619.6,0.04113119]
[1733216173635,0.56495737,3620.2,3619.6,0.04113119]
[1733216173847,0.56495737,3620.2,3619.1,5.76551997]
[1733216174142,0.7991,3619.7,3619.2,0.04138169]
[1733216174313,2.76283,3619.5,3618.6,0.7649]
[1733216174521,1.05507503,3619.7,3617.9,0.35911952]
[1733216174522,3.01890125,3619.4,3618.0,3.76736997]
[1733216174729,2.76274,3619.6,3618.7,0.03898418]
[1733216175045,3.01880076,3619.5,3618.8,0.03892154]
[1733216175253,3.01887076,3619.4,3618.2,2.7638]
[1733216175542,0.25598076,3619.3,3618.3,2.80294481]
[1733216175751,3.3266143,3619.2,3618.3,0.03923481]
[1733216176044,0.7571,3618.5,3617.1,3.00246997]
[1733216176346,0.7571,3618.5,3617.2,0.41423775]
[1733216176640,0.7571,3618.5,3617.6,2.76419]
[1733216176854,0.7571,3618.5,3617.7,0.03754069]
[1733216176855,0.55759942,3618.4,3617.7,0.03754069]
[1733216177055,0.7571,3618.5,3617.9,2.76402]
[1733216177209,1.01294387,3619.1,3618.0,2.80129933]
[1733216177651,0.7571,3618.8,3618.0,0.03735933]
[1733216177807,0.7571,3618.8,3616.1,0.19999678]
[1733216177808,0.7571,3618.1,3617.0,0.81]